Workbook

Sheet интернат гимн
A1: Согласовано | O1: Утверждено
O2: ООО "КРЕПЫШ"
O3: _______________________Ефремов В.Ю.
A5: Меню для организации питания детей в возрасте с 7-11 лет, проживающих в интернате Мензелинского муниципального района на 1 полугодие 2022-2023 учебный год.
A7: 1 день, 1 неделя
A8: № рецептуры | B8: Прием пищи, наименование блюда | C8: Масса | D8: Пищевые вещества | G8: Энергетическая ценность | H8: Витамины | M8: Минеральные вещества
D9: Белки | E9: Жиры | F9: Углеводы | H9: B1 | I9: B2 | J9: A | K9: D | L9: C | M9: Na | N9: K | O9: Ca | P9: Mg | Q9: P | R9: Fe | S9: I | T9: Se | U9: F
C10: г | D10: г | E10: г | F10: г | G10: ккал | H10: мг | I10: мг | J10: мкг рет.экв | K10: мкг | L10: мг | M10: мг | N10: мг | O10: мг | P10: мг | Q10: мг | R10: мг | S10: мкг | T10: мкг | U10: мкг
B11: Завтрак
A12: 54-1о-2020 | B12: Омлет натуральный | C12: 150 | D12: 12.68 | E12: 17.95 | F12: 3.25 | G12: 225.2 | H12: 0.07 | I12: 0.4 | J12: 182.66 | K12: 2.18 | L12: 0 | M12: 264 | N12: 180 | O12: 110 | P12: 17 | Q12: 202 | R12: 2.1 | S12: 43.65 | T12: 26 | U12: 62.62
A13: 54-23гн-2020 | B13: Кофейный напиток с молоком | C13: 200 | D13: 3.9 | E13: 2.9 | F13: 11.2 | G13: 86 | H13: 0.03 | I13: 0.13 | J13: 13.29 | K13: 0 | L13: 0.52 | M13: 38.55 | N13: 183.98 | O13: 148.32 | P13: 30.67 | Q13: 106.79 | R13: 1.06 | S13: 9 | T13: 1.76 | U13: 20
A14: 53-19з-2020 | B14: Масло сливочное (порциями) | C14: 10 | D14: 0.08 | E14: 7.25 | F14: 0.13 | G14: 66.1 | H14: 0 | I14: 0.01 | J14: 27 | K14: 0.13 | L14: 0 | M14: 1.14 | N14: 2.49 | O14: 2.11 | P14: 0 | Q14: 2.61 | R14: 0.02 | S14: 0 | T14: 0.1 | U14: 0.3
A15: Пром. | B15: Хлеб пшеничный | C15: 40 | D15: 2.3 | E15: 0.2 | F15: 14.8 | G15: 70.3 | H15: 0.03 | I15: 0.01 | J15: 0 | K15: 0 | L15: 0 | M15: 149.7 | N15: 27.9 | O15: 6 | P15: 4.2 | Q15: 19.5 | R15: 0.33 | S15: 0.96 | T15: 1.8 | U15: 4.35
A16: Пром. | B16: Яблоко | C16: 100 | D16: 0.4 | E16: 0.4 | F16: 9.8 | G16: 44.4 | H16: 0.03 | I16: 0.02 | J16: 5 | K16: 0 | L16: 10 | M16: 26 | N16: 278 | O16: 16 | P16: 9 | Q16: 11 | R16: 2.2 | S16: 2 | T16: 0.3 | U16: 8
B17: Итого за Завтрак | C17: =C12+C13+C15+C14+C16 -> 500 | D17: =D12+D13+D15+D14+D16 -> 19.36 | E17: 28.7 | F17: 39.18 | G17: 492 | H17: 0.16 | I17: 0.57 | J17: 227.95 | K17: 2.31 | L17: 10.52 | M17: 479.39 | N17: 672.37 | O17: 282.43 | P17: 60.87 | Q17: 341.9 | R17: 5.71 | S17: 55.61 | T17: 29.96 | U17: 95.27
B18: Обед
A19: 54-11з-2020 | B19: Салат из моркови с яблоками с растительным маслом | C19: 60 | D19: 0.5 | E19: 6.1 | F19: 4.3 | G19: 74.3 | H19: 0.03 | I19: 0.03 | J19: 732.9 | K19: 0 | L19: 3.63 | M19: 89.79 | N19: 123.26 | O19: 13.5 | P19: 15.57 | Q19: 22.38 | R19: 0.66 | S19: 10.19 | T19: 0.09 | U19: 21.57
A20: 54-3с-2020 | B20: Рассольник Ленинградский | C20: 200 | D20: 4.8 | E20: 5.8 | F20: 13.6 | G20: 125.5 | H20: 0.06 | I20: 0.05 | J20: 103.93 | K20: 0 | L20: 5.54 | M20: 196.79 | N20: 334.95 | O20: 21.08 | P20: 19.71 | Q20: 51.39 | R20: 0.71 | S20: 16.6 | T20: 0.75 | U20: 28.28
A21: 54-4г-2020 | B21: Каша гречневая рассыпчатая | C21: 150 | D21: 8.2 | E21: 6.3 | F21: 35.9 | G21: 233.7 | H21: 0.21 | I21: 0.12 | J21: 19.19 | K21: 0.09 | L21: 0 | M21: 149.45 | N21: 219.36 | O21: 46.62 | P21: 120.16 | Q21: 180.99 | R21: 4.05 | S21: 22.28 | T21: 3.52 | U21: 16.06
A22: ном.рец №174 | B22: Тефтели мясные из говядины, полуфабрикат в соусе | C22: 75/30 | D22: 10.81 | E22: 10.4 | F22: 8.42 | G22: 168.9 | H22: 0 | I22: 0 | J22: 38.45 | K22: 0.01 | L22: 1.79 | M22: 3 | N22: 43 | O22: 45.75 | P22: 35.13 | Q22: 109 | R22: 1.6 | S22: 0 | T22: 0 | U22: 0
A23: 54-4гн-2020 | B23: Чай с молоком и сахаром | C23: 200 | D23: 1.6 | E23: 1.1 | F23: 8.6 | G23: 50.9 | H23: 0.01 | I23: 0.07 | J23: 6.9 | K23: 0 | L23: 0.3 | M23: 19.68 | N23: 81.35 | O23: 103.48 | P23: 9.92 | Q23: 46.33 | R23: 0.78 | S23: 4.5 | T23: 0.88 | U23: 10
A24: Пром. | B24: Хлеб пшеничный | C24: 30 | D24: 2.3 | E24: 0.2 | F24: 14.8 | G24: 70.3 | H24: 0.03 | I24: 0.01 | J24: 0 | K24: 0 | L24: 0 | M24: 149.7 | N24: 27.9 | O24: 6 | P24: 4.2 | Q24: 19.5 | R24: 0.33 | S24: 0.96 | T24: 1.8 | U24: 4.35
A25: Пром. | B25: Хлеб ржаной | C25: 20 | D25: 1.3 | E25: 0.2 | F25: 6.7 | G25: 34.2 | H25: 0.04 | I25: 0.02 | J25: 0 | K25: 0 | L25: 0 | M25: 122 | N25: 49 | O25: 7 | P25: 9.4 | Q25: 31.6 | R25: 0.78 | S25: 0 | T25: 6.18 | U25: 0
B26: Итого за Обед | C26: 765 | D26: =D19+D20+D21+D22+D23+D24+D25 -> 29.51 | E26: =E19+E20+E21+E22+E23+E24+E25 -> 30.1 | F26: 92.32 | G26: =G19+G20+G21+G22+G23+G24+G25 -> 757.8 | H26: 0.38 | I26: 0.3 | J26: 901.37 | K26: 0.1 | L26: 11.26 | M26: 730.41 | N26: 878.82 | O26: 243.43 | P26: 214.09 | Q26: 461.19 | R26: 8.91 | S26: 54.53 | T26: 13.22 | U26: 80.26
B27: Полдник
A28: Пром. | B28: Сок персиковый | C28: 200 | D28: 0.6 | E28: 0 | F28: 33 | G28: 134.4 | H28: 0.03 | I28: 0.06 | J28: 60 | K28: 0 | L28: 5 | M28: 9 | N28: 252 | O28: 9 | P28: 21 | Q28: 26 | R28: 0.3 | S28: 0 | T28: 0 | U28: 0
A29: Пром. | B29: Пряник | C29: 30 | D29: 1.8 | E29: 1.4 | F29: 22.5 | G29: 109.8 | H29: 0.02 | I29: 0.01 | J29: 0 | K29: 0 | L29: 0 | M29: 0.6 | N29: 21.3 | O29: 3.3 | P29: 2.7 | Q29: 15 | R29: 0.24 | S29: 0 | T29: 0 | U29: 0
B30: Итого за Полдник | C30: =C28+C29 -> 230 | D30: =D28+D29 -> 2.4 | E30: 1.4 | F30: 55.5 | G30: 244.2 | H30: 0.05 | I30: 0.07 | J30: 60 | K30: 0 | L30: 5 | M30: 9.6 | N30: 273.3 | O30: 12.3 | P30: 23.7 | Q30: 41 | R30: 0.54 | S30: 0 | T30: 0 | U30: 0
B31: Ужин
A32: 54-1г-2020 | B32: Макароны отварные | C32: 150 | D32: 5.3 | E32: 4.9 | F32: 32.8 | G32: 196.8 | H32: 0.06 | I32: 0.02 | J32: 18.36 | K32: 0.09 | L32: 0 | M32: 149.04 | N32: 53.8 | O32: 105.83 | P32: 7.19 | Q32: 40.7 | R32: 0.73 | S32: 20.77 | T32: 0.06 | U32: 11.92
A33: ном.рец №608 | B33: Котлета мясная Любительская, полуфабрикат в соусе | C33: 65/35 | D33: 10.04 | E33: 12.79 | F33: 8.12 | G33: 187.9 | H33: 0 | I33: 0 | J33: 38.45 | K33: 0.01 | L33: 1.15 | M33: 3 | N33: 43 | O33: 45.75 | P33: 35.13 | Q33: 173.38 | R33: 1.6 | S33: 0 | T33: 0 | U33: 0
A34: 54-1хн-2020 | B34: Компот из смеси сухофруктов | C34: 200 | D34: 0.5 | E34: 0 | F34: 19.8 | G34: 81 | H34: 0 | I34: 0 | J34: 15 | K34: 0 | L34: 0.02 | M34: 0.05 | N34: 0.17 | O34: 108.08 | P34: 2.11 | Q34: 4.31 | R34: 0.08 | S34: 0 | T34: 0 | U34: 0
A35: Пром. | B35: Хлеб пшеничный | C35: 30 | D35: 2.3 | E35: 0.2 | F35: 14.8 | G35: 70.3 | H35: 0.03 | I35: 0.01 | J35: 0 | K35: 0 | L35: 0 | M35: 149.7 | N35: 27.9 | O35: 6 | P35: 4.2 | Q35: 19.5 | R35: 0.33 | S35: 0.96 | T35: 1.8 | U35: 4.35
B36: Итого за Ужин | C36: 760 | D36: =D32+D33+D34+D35+D16+D38 -> 24.34 | E36: 23.29 | F36: 93.72 | G36: 682.2 | H36: 0.15 | I36: 0.26 | J36: 103.21 | K36: 0.1 | L36: 11.17 | M36: 403.79 | N36: 644.87 | O36: 499.66 | P36: 81.63 | Q36: 408.89 | R36: 5.14 | S36: 41.73 | T36: 3.96 | U36: 64.27
B37: Ужин 2
A38: Пром. | B38: Ряженка 2.5% | C38: 200 | D38: 5.8 | E38: 5 | F38: 8.4 | G38: 101.8 | H38: 0.03 | I38: 0.21 | J38: 26.4 | K38: 0 | L38: 0 | M38: 76 | N38: 242 | O38: 218 | P38: 24 | Q38: 160 | R38: 0.2 | S38: 18 | T38: 1.8 | U38: 40
B39: Итого за ужин 2 | C39: =C38 -> 200 | D39: =D38 -> 5.8 | E39: 5 | F39: 8.4 | G39: 101.8 | H39: 0.03 | I39: 0.21 | J39: 26.4 | K39: 0 | L39: 0 | M39: 76 | N39: 242 | O39: 218 | P39: 24 | Q39: 160 | R39: 0.2 | S39: 18 | T39: 1.8 | U39: 40
B40: Итого за день | C40: =C17+C26+C30+C36+C39 -> 2455 | D40: =D17+D26+D30+D36+D39 -> 81.41 | E40: 88.49 | F40: 289.12 | G40: 2278 | H40: 0.77 | I40: 1.41 | J40: 1318.93 | K40: 2.51 | L40: 37.95 | M40: 1699.19 | N40: 2711.36 | O40: 1255.82 | P40: 404.29 | Q40: 1412.98 | R40: 20.5 | S40: 169.87 | T40: 48.94 | U40: 279.8
A42: 2 день, 1 неделя
A43: № рецептуры | B43: Прием пищи, наименование блюда | C43: Масса | D43: Пищевые вещества | G43: Энергетическая ценность | H43: Витамины | M43: Минеральные вещества
D44: Белки | E44: Жиры | F44: Углеводы | H44: B1 | I44: B2 | J44: A | K44: D | L44: C | M44: Na | N44: K | O44: Ca | P44: Mg | Q44: P | R44: Fe | S44: I | T44: Se | U44: F
C45: г | D45: г | E45: г | F45: г | G45: ккал | H45: мг | I45: мг | J45: мкг рет.экв | K45: мкг | L45: мг | M45: мг | N45: мг | O45: мг | P45: мг | Q45: мг | R45: мг | S45: мкг | T45: мкг | U45: мкг
B46: Завтрак
A47: 54-1з-2020 | B47: Сыр твердых сортов в нарезке | C47: 10 | D47: 3.48 | E47: 4.42 | F47: 0 | G47: 53.7 | H47: 0 | I47: 0.04 | J47: 23.4 | K47: 0.14 | L47: 0.04 | M47: 92.34 | N47: 10.96 | O47: 116.16 | P47: 4.57 | Q47: 65.25 | R47: 0.13 | S47: 0 | T47: 1.9 | U47: 0
A48: 54-22к-2020 | B48: Каша жидкая молочная овсяная | C48: 200 | D48: 6.82 | E48: 7.44 | F48: 24.61 | G48: 192.6 | H48: 0.14 | I48: 0.17 | J48: 29.08 | K48: 0.07 | L48: 1 | M48: 348 | N48: 237 | O48: 164 | P48: 45 | Q48: 188 | R48: 1.1 | S48: 52.01 | T48: 9.9 | U48: 49.61
A49: 54-2гн-2020 | B49: Чай с сахаром | C49: 200 | D49: 0.2 | E49: 0 | F49: 6.4 | G49: 26.8 | H49: 0 | I49: 0.01 | J49: 0.3 | K49: 0 | L49: 0.04 | M49: 0.68 | N49: 20.76 | O49: 66.08 | P49: 3.83 | Q49: 7.18 | R49: 0.73 | S49: 0 | T49: 0 | U49: 0
A50: Пром. | B50: Хлеб пшеничный | C50: 30 | D50: 2.3 | E50: 0.2 | F50: 14.8 | G50: 70.3 | H50: 0.03 | I50: 0.01 | J50: 0 | K50: 0 | L50: 0 | M50: 149.7 | N50: 27.9 | O50: 6 | P50: 4.2 | Q50: 19.5 | R50: 0.33 | S50: 0.96 | T50: 1.8 | U50: 4.35
A51: Пром. | B51: Хлеб ржаной | C51: 20 | D51: 1.3 | E51: 0.2 | F51: 6.7 | G51: 34.2 | H51: 0.04 | I51: 0.02 | J51: 0 | K51: 0 | L51: 0 | M51: 122 | N51: 49 | O51: 7 | P51: 9.4 | Q51: 31.6 | R51: 0.78 | S51: 0 | T51: 6.18 | U51: 0
B52: Итого за Завтрак | C52: =C47+C48+C49+C50+C51 -> 460 | D52: =D47+D48+D49+D50+D51 -> 14.1 | E52: 12.26 | F52: 52.51 | G52: 377.6 | H52: 0.21 | I52: 0.25 | J52: 52.78 | K52: 0.21 | L52: 1.08 | M52: 712.72 | N52: 345.62 | O52: 359.24 | P52: 67 | Q52: 311.53 | R52: 3.07 | S52: 52.97 | T52: 19.78 | U52: 53.96
B53: Обед
A54: 54-7з-2020 | B54: Салат из белокочанной капусты с растительным маслом | C54: 60 | D54: 1.5 | E54: 6.1 | F54: 6.2 | G54: 85.8 | H54: 0.03 | I54: 0.04 | J54: 122.25 | K54: 0 | L54: 34.78 | M54: 88.69 | N54: 247.73 | O54: 40.39 | P54: 15.18 | Q54: 30.31 | R54: 0.55 | S54: 10.73 | T54: 0.26 | U54: 12.66
A55: 100 | B55: Суп картофельный с вермишелью | C55: 200 | D55: 2.3 | E55: 2.2 | F55: 16.2 | G55: 94.4 | H55: 0.1 | I55: 0 | J55: 0.2 | K55: 0 | L55: 5.3 | M55: 0 | N55: 0 | O55: 19.2 | P55: 18.7 | Q55: 46.1 | R55: 0.9 | S55: 0 | T55: 0 | U55: 0
A56: 54-22м-2020 | B56: Рагу из курицы | C56: 140/60 | D56: 21 | E56: 7 | F56: 17.5 | G56: 217.3 | H56: 0.14 | I56: 0.11 | J56: 259.68 | K56: 0 | L56: 11.25 | M56: 281.38 | N56: 738.57 | O56: 32.19 | P56: 93.35 | Q56: 192.51 | R56: 2.13 | S56: 42.97 | T56: 17.04 | U56: 156.36
A57: 54-21гн-2020 | B57: Какао с молоком | C57: 200 | D57: 4.7 | E57: 3.5 | F57: 12.5 | G57: 100.4 | H57: 0.04 | I57: 0.16 | J57: 17.25 | K57: 0 | L57: 0.68 | M57: 49.95 | N57: 220.33 | O57: 167.68 | P57: 34.32 | Q57: 130.28 | R57: 1.09 | S57: 11.7 | T57: 2.29 | U57: 38.25
A58: Пром. | B58: Хлеб пшеничный | C58: 30 | D58: 2.3 | E58: 0.2 | F58: 14.8 | G58: 70.3 | H58: 0.03 | I58: 0.01 | J58: 0 | K58: 0 | L58: 0 | M58: 149.7 | N58: 27.9 | O58: 6 | P58: 4.2 | Q58: 19.5 | R58: 0.33 | S58: 0.96 | T58: 1.8 | U58: 4.35
B59: Итого за Обед | C59: 690 | D59: =D54+D55+D56+D57+D58+D51 -> 33.1 | E59: 19.2 | F59: 73.9 | G59: 602.4 | H59: 0.38 | I59: 0.34 | J59: 399.38 | K59: 0 | L59: 52.01 | M59: 691.72 | N59: 1283.53 | O59: 272.46 | P59: 175.15 | Q59: 450.3 | R59: 5.78 | S59: 66.36 | T59: 27.57 | U59: 211.62
B60: Полдник
A61: Пром. | B61: Вафли с фруктовыми начинками | C61: 30 | D61: 0.84 | E61: 0.99 | F61: 23.19 | G61: 105 | H61: 0.01 | I61: 0.01 | J61: 0.54 | K61: 0 | L61: 0 | M61: 11.17 | N61: 34.86 | O61: 4.22 | P61: 2.61 | Q61: 9.4 | R61: 0.39 | S61: 0 | T61: 0 | U61: 0
A62: Пром. | B62: Сок яблочный | C62: 200 | D62: 1 | E62: 0.2 | F62: 20.2 | G62: 86.6 | H62: 0.02 | I62: 0.02 | J62: 0 | K62: 0 | L62: 4 | M62: 12 | N62: 240 | O62: 14 | P62: 8 | Q62: 14 | R62: 2.8 | S62: 0 | T62: 0 | U62: 0
B63: Итого за Полдник | C63: =C61+C62 -> 230 | D63: =D61+D62 -> 1.84 | E63: 1.19 | F63: 43.39 | G63: 191.6 | H63: 0.03 | I63: 0.03 | J63: 0.54 | K63: 0 | L63: 4 | M63: 23.17 | N63: 274.86 | O63: 18.22 | P63: 10.61 | Q63: 23.4 | R63: 3.19 | S63: 0 | T63: 0 | U63: 0
B64: Ужин
A65: 54-6т-2020 | B65: Сырники | C65: 160 | D65: 31.4 | E65: 9.2 | F65: 26.3 | G65: 313.2 | H65: 0.07 | I65: 0.33 | J65: 46.02 | K65: 0.15 | L65: 0.3 | M65: 146.88 | N65: 169.42 | O65: 219.92 | P65: 33.17 | Q65: 304.73 | R65: 0.87 | S65: 27.47 | T65: 40.06 | U65: 54.51
A66: 54-33хн-2020 | B66: Напиток апельсиновый | C66: 200 | D66: 0.2 | E66: 0 | F66: 8 | G66: 33 | H66: 0.01 | I66: 0.01 | J66: 1.06 | K66: 0 | L66: 5.28 | M66: 2.23 | N66: 36.15 | O66: 74.47 | P66: 2.49 | Q66: 4.4 | R66: 0.08 | S66: 0.44 | T66: 0.1 | U66: 3.74
A67: Пром. | B67: Хлеб пшеничный | C67: 30 | D67: 2.3 | E67: 0.2 | F67: 14.8 | G67: 70.3 | H67: 0.03 | I67: 0.01 | J67: 0 | K67: 0 | L67: 0 | M67: 149.7 | N67: 27.9 | O67: 6 | P67: 4.2 | Q67: 19.5 | R67: 0.33 | S67: 0.96 | T67: 1.8 | U67: 4.35
A68: 451 СПБ 2008 | B68: Пирожок печеный с картошкой | C68: 100 | D68: 1.6 | E68: 0.2 | F68: 10.3 | G68: 49.6 | H68: 0.03 | I68: 0.01 | J68: 0 | K68: 0 | L68: 0 | M68: 90.75 | N68: 27.75 | O68: 4.5 | P68: 6.9 | Q68: 18.15 | R68: 0.44 | S68: 0 | T68: 0 | U68: 0
B69: Итого за Ужин | C69: =C65+C66+C67+C68 -> 490 | D69: =D65+D66+D67+D68 -> 35.5 | E69: 9.6 | F69: 59.4 | G69: 466.1 | H69: 0.14 | I69: 0.36 | J69: 47.08 | K69: 0.15 | L69: 5.58 | M69: 389.56 | N69: 261.22 | O69: 304.89 | P69: 46.76 | Q69: 346.78 | R69: 1.72 | S69: 28.87 | T69: 41.96 | U69: 62.6
B70: Ужин 2
A71: Пром. | B71: Кефир 3.2% | C71: 200 | D71: 5.8 | E71: 5 | F71: 8 | G71: 100.2 | H71: 0.06 | I71: 0.27 | J71: 26.4 | K71: 0 | L71: 1 | M71: 76 | N71: 242 | O71: 211 | P71: 24 | Q71: 157 | R71: 0.2 | S71: 18 | T71: 3.5 | U71: 40
B72: Итого за ужин 2 | C72: =C71 -> 200 | D72: =D71 -> 5.8 | E72: 5 | F72: 8 | G72: 100.2 | H72: 0.06 | I72: 0.27 | J72: 26.4 | K72: 0 | L72: 1 | M72: 76 | N72: 242 | O72: 211 | P72: 24 | Q72: 157 | R72: 0.2 | S72: 18 | T72: 3.5 | U72: =U71 -> 40
B73: Итого за день | C73: =C52+C59+C63+C69+C72 -> 2070 | D73: 90.34 | E73: 47.25 | F73: 237.2 | G73: 1737.9 | H73: 0.82 | I73: 1.25 | J73: 526.18 | K73: 0.36 | L73: 63.67 | M73: 1893.17 | N73: 2407.23 | O73: 1165.81 | P73: 323.52 | Q73: 1289.01 | R73: 13.96 | S73: 166.2 | T73: 92.81 | U73: 368.18
A75: 3 день, 1 неделя
A76: № рецептуры | B76: Прием пищи, наименование блюда | C76: Масса | D76: Пищевые вещества | G76: Энергетическая ценность | H76: Витамины | M76: Минеральные вещества
D77: Белки | E77: Жиры | F77: Углеводы | H77: B1 | I77: B2 | J77: A | K77: D | L77: C | M77: Na | N77: K | O77: Ca | P77: Mg | Q77: P | R77: Fe | S77: I | T77: Se | U77: F
C78: г | D78: г | E78: г | F78: г | G78: ккал | H78: мг | I78: мг | J78: мкг рет.экв | K78: мкг | L78: мг | M78: мг | N78: мг | O78: мг | P78: мг | Q78: мг | R78: мг | S78: мкг | T78: мкг | U78: мкг
B79: Завтрак
A80: 53-19з-2020 | B80: Масло сливочное (порциями) | C80: 10 | D80: 0.08 | E80: 7.25 | F80: 0.13 | G80: 66.1 | H80: 0 | I80: 0.01 | J80: 27 | K80: 0.13 | L80: 0 | M80: 1.14 | N80: 2.49 | O80: 2.11 | P80: 0 | Q80: 2.61 | R80: 0.02 | S80: 0 | T80: 0.1 | U80: 0.3
A81: 54-21к-2020 | B81: Каша вязкая молочная ячневая | C81: 150 | D81: 5.4 | E81: 7 | F81: 25.6 | G81: 186.8 | H81: 0.09 | I81: 0.13 | J81: 31.14 | K81: 0.1 | L81: 0.43 | M81: 256.67 | N81: 158.61 | O81: 127.09 | P81: 24.68 | Q81: 166.41 | R81: 0.63 | S81: 37.43 | T81: 12.57 | U81: 46.68
A82: 54-1хн-2020 | B82: Компот из смеси сухофруктов | C82: 200 | D82: 0.5 | E82: 0 | F82: 19.8 | G82: 81 | H82: 0 | I82: 0 | J82: 15 | K82: 0 | L82: 0.02 | M82: 0.05 | N82: 0.17 | O82: 108.08 | P82: 2.11 | Q82: 4.31 | R82: 0.08 | S82: 0 | T82: 0 | U82: 0
A83: Пром. | B83: Хлеб пшеничный | C83: 40 | D83: 2.3 | E83: 0.2 | F83: 14.8 | G83: 70.3 | H83: 0.03 | I83: 0.01 | J83: 0 | K83: 0 | L83: 0 | M83: 149.7 | N83: 27.9 | O83: 6 | P83: 4.2 | Q83: 19.5 | R83: 0.33 | S83: 0.96 | T83: 1.8 | U83: 4.35
B84: Итого за Завтрак | C84: =C80+C81+C82+C83 -> 400 | D84: =D80+D81+D82+D83 -> 8.28 | E84: 14.45 | F84: 60.33 | G84: 404.2 | H84: 0.12 | I84: 0.15 | J84: 73.14 | K84: 0.23 | L84: 0.45 | M84: 407.56 | N84: 189.17 | O84: 243.28 | P84: 30.99 | Q84: 192.83 | R84: 1.06 | S84: 38.39 | T84: 14.47 | U84: 51.33
B85: Обед
A86: 54-13з-2020 | B86: Салат из свеклы отварной с растительным маслом | C86: 60 | D86: 0.8 | E86: 2.7 | F86: 4.6 | G86: 45.6 | H86: 0.01 | I86: 0.02 | J86: 0.68 | K86: 0 | L86: 2.28 | M86: 78.77 | N86: 136.27 | O86: 19.21 | P86: 10.95 | Q86: 21.51 | R86: 0.7 | S86: 11.99 | T86: 0.35 | U86: 11.4
A87: 54-6с-2020 | B87: Суп картофельный с клецками | C87: 200 | D87: 4.6 | E87: 3.3 | F87: 11.4 | G87: 93.6 | H87: 0.05 | I87: 0.04 | J87: 101.43 | K87: 0.05 | L87: 3.69 | M87: 58.01 | N87: 222.12 | O87: 13.28 | P87: 12.74 | Q87: 35.97 | R87: 0.54 | S87: 10.28 | T87: 0.94 | U87: 21.22
A88: 54-1г-2020 | B88: Макароны отварные | C88: 150 | D88: 5.3 | E88: 4.9 | F88: 32.8 | G88: 196.8 | H88: 0.06 | I88: 0.02 | J88: 18.36 | K88: 0.09 | L88: 0 | M88: 149.04 | N88: 53.8 | O88: 105.83 | P88: 7.19 | Q88: 40.7 | R88: 0.73 | S88: 20.77 | T88: 0.06 | U88: 11.92
A89: №243 | B89: Сосиски говяжьи отварные, п/ф (2 шт) | C89: 100 | D89: 13.2 | E89: 22.84 | F89: 1.8 | G89: 247.15 | H89: 0 | I89: 0 | J89: 0.08 | K89: 0.01 | L89: 0 | M89: 0 | N89: 0 | O89: 7.44 | P89: 15.51 | Q89: 137.39 | R89: 1.74 | S89: 0 | T89: 0 | U89: 0
A90: 54-3гн-2020 | B90: Чай с лимоном и сахаром | C90: 207 | D90: 0.2 | E90: 0.1 | F90: 6.6 | G90: 27.9 | H90: 0 | I90: 0.01 | J90: 0.38 | K90: 0 | L90: 1.16 | M90: 1.26 | N90: 30.23 | O90: 67 | P90: 4.56 | Q90: 8.52 | R90: 0.77 | S90: 0.01 | T90: 0.02 | U90: 0.7
A91: Пром. | B91: Хлеб ржаной | C91: 20 | D91: 1.3 | E91: 0.2 | F91: 6.7 | G91: 34.2 | H91: 0.04 | I91: 0.02 | J91: 0 | K91: 0 | L91: 0 | M91: 122 | N91: 49 | O91: 7 | P91: 9.4 | Q91: 31.6 | R91: 0.78 | S91: 0 | T91: 6.18 | U91: 0
A92: Пром. | B92: Хлеб пшеничный | C92: 30 | D92: 2.3 | E92: 0.2 | F92: 14.8 | G92: 70.3 | H92: 0.03 | I92: 0.01 | J92: 0 | K92: 0 | L92: 0 | M92: 149.7 | N92: 27.9 | O92: 6 | P92: 4.2 | Q92: 19.5 | R92: 0.33 | S92: 0.96 | T92: 1.8 | U92: 4.35
B93: Итого за Обед | C93: =C86+C87+C88+C89+C90+C91+C92 -> 767 | D93: =D86+D87+D88+D89+D90+D91+D92 -> 27.7 | E93: 34.24 | F93: 78.7 | G93: 715.55 | H93: 0.19 | I93: 0.12 | J93: 120.93 | K93: 0.15 | L93: 7.13 | M93: 558.78 | N93: 519.32 | O93: 225.76 | P93: 64.55 | Q93: 295.19 | R93: 5.59 | S93: 44.01 | T93: 9.35 | U93: 49.59
B94: Полдник
A95: Пром. | B95: Сок персиковый | C95: 200 | D95: 0.6 | E95: 0 | F95: 33 | G95: 134.4 | H95: 0.03 | I95: 0.06 | J95: 60 | K95: 0 | L95: 5 | M95: 9 | N95: 252 | O95: 9 | P95: 21 | Q95: 26 | R95: 0.3 | S95: 0 | T95: 0 | U95: 0
A96: Пром. | B96: Сушка простая | C96: 30 | D96: 3.27 | E96: 0.39 | F96: 20.64 | G96: 99.1 | H96: 0.05 | I96: 0.02 | J96: 0 | K96: 0 | L96: 0 | M96: 137.94 | N96: 46.06 | O96: 7.92 | P96: 12.01 | Q96: 31.58 | R96: 0.76 | S96: 0 | T96: 0 | U96: 0
B97: Итого за Полдник | C97: =C95+C96 -> 230 | D97: =D95+D96 -> 3.87 | E97: 0.39 | F97: 53.64 | G97: 233.5 | H97: 0.08 | I97: 0.08 | J97: 60 | K97: 0 | L97: 5 | M97: 146.94 | N97: 298.06 | O97: 16.92 | P97: 33.01 | Q97: 57.58 | R97: 1.06 | S97: 0 | T97: 0 | U97: 0
B98: Ужин
A99: 54-6г-2020 | B99: Рис отварной | C99: 180 | D99: 4.32 | E99: 5.78 | F99: 43.74 | G99: 244.2 | H99: 0.04 | I99: 0.03 | J99: 22.03 | K99: 0.11 | L99: 0 | M99: 184 | N99: 56 | O99: 129 | P99: 28 | Q99: 87 | R99: 0.6 | S99: 24.91 | T99: 8.7 | U99: 32.63
A100: 54-5м-2020 | B100: Котлета из курицы | C100: 100 | D100: 19.09 | E100: 4.32 | F100: 13.37 | G100: 168.7 | H100: 0.07 | I100: 0.07 | J100: 6.3 | K100: 0 | L100: 1 | M100: 211 | N100: 229 | O100: 32 | P100: 65 | Q100: 143 | R100: 1.3 | S100: 17.1 | T100: 18.5 | U100: 102.31
A101: Пром. | B101: Хлеб пшеничный | C101: 30 | D101: 2.3 | E101: 0.2 | F101: 14.8 | G101: 70.3 | H101: 0.03 | I101: 0.01 | J101: 0 | K101: 0 | L101: 0 | M101: 149.7 | N101: 27.9 | O101: 6 | P101: 4.2 | Q101: 19.5 | R101: 0.33 | S101: 0.96 | T101: 1.8 | U101: 4.35
A102: 54-4гн-2020 | B102: Чай с молоком и сахаром | C102: 200 | D102: 1.6 | E102: 1.1 | F102: 8.6 | G102: 50.9 | H102: 0.01 | I102: 0.07 | J102: 6.9 | K102: 0 | L102: 0.3 | M102: 19.68 | N102: 81.35 | O102: 103.48 | P102: 9.92 | Q102: 46.33 | R102: 0.78 | S102: 4.5 | T102: 0.88 | U102: 10
B103: Итого за Ужин | C103: =C99+C105+C101+C102 -> 610 | D103: 14.02 | E103: 12.08 | F103: 75.54 | G103: 467.2 | H103: 0.11 | I103: 0.32 | J103: 55.33 | K103: 0.11 | L103: 0.3 | M103: 429.38 | N103: 407.25 | O103: 456.48 | P103: 66.12 | Q103: 312.83 | R103: 1.91 | S103: 48.37 | T103: 13.18 | U103: 86.98
B104: Ужин 2
A105: Пром. | B105: Ряженка 2.5% | C105: 200 | D105: 5.8 | E105: 5 | F105: 8.4 | G105: 101.8 | H105: 0.03 | I105: 0.21 | J105: 26.4 | K105: 0 | L105: 0 | M105: 76 | N105: 242 | O105: 218 | P105: 24 | Q105: 160 | R105: 0.2 | S105: 18 | T105: 1.8 | U105: 40
B106: Итого за ужин 2 | C106: =C105 -> 200 | D106: =D105 -> 5.8 | E106: 5 | F106: 8.4 | G106: 101.8 | H106: 0.03 | I106: 0.21 | J106: 26.4 | K106: 0 | L106: 0 | M106: 76 | N106: 242 | O106: 218 | P106: 24 | Q106: 160 | R106: 0.2 | S106: 18 | T106: 1.8 | U106: 40
B107: Итого за день | C107: =C84+C93+C97+C103+C106 -> 2207 | D107: =D84+D93+D97+D103+D106 -> 59.67 | E107: 66.16 | F107: 276.61 | G107: 1922.25 | H107: 0.53 | I107: 0.88 | J107: 335.8 | K107: 0.49 | L107: 12.88 | M107: 1618.66 | N107: 1655.8 | O107: 1160.44 | P107: 218.67 | Q107: 1018.43 | R107: 9.82 | S107: 148.77 | T107: 38.8 | U107: 227.9
A109: 4 день, 1 неделя
A110: № рецептуры | B110: Прием пищи, наименование блюда | C110: Масса | D110: Пищевые вещества | G110: Энергетическая ценность | H110: Витамины | M110: Минеральные вещества
D111: Белки | E111: Жиры | F111: Углеводы | H111: B1 | I111: B2 | J111: A | K111: D | L111: C | M111: Na | N111: K | O111: Ca | P111: Mg | Q111: P | R111: Fe | S111: I | T111: Se | U111: F
C112: г | D112: г | E112: г | F112: г | G112: ккал | H112: мг | I112: мг | J112: мкг рет.экв | K112: мкг | L112: мг | M112: мг | N112: мг | O112: мг | P112: мг | Q112: мг | R112: мг | S112: мкг | T112: мкг | U112: мкг
B113: Завтрак
A114: 54-1з-2020 | B114: Сыр твердых сортов в нарезке | C114: 10 | D114: 2.8 | E114: 3.5 | F114: 0 | G114: 43 | H114: 0 | I114: 0.04 | J114: 31.2 | K114: 0.12 | L114: 0.08 | M114: 97.2 | N114: 10.56 | O114: 105.6 | P114: 4.2 | Q114: 60 | R114: 0.12 | S114: 0 | T114: 1.74 | U114: 0
A115: 54-13к-2020 | B115: Каша вязкая молочная пшеничная | C115: 150 | D115: 6.1 | E115: 6.9 | F115: 29 | G115: 202.7 | H115: 0.1 | I115: 0.13 | J115: 30.74 | K115: 0.1 | L115: 0.41 | M115: 256.57 | N115: 169.91 | O115: 113.68 | P115: 29.4 | Q115: 154.74 | R115: 1.64 | S115: 37.16 | T115: 24.8 | U115: 16.11
A116: 54-2гн-2020 | B116: Чай с сахаром | C116: 200 | D116: 0.2 | E116: 0 | F116: 6.4 | G116: 26.8 | H116: 0 | I116: 0.01 | J116: 0.3 | K116: 0 | L116: 0.04 | M116: 0.68 | N116: 20.76 | O116: 66.08 | P116: 3.83 | Q116: 7.18 | R116: 0.73 | S116: 0 | T116: 0 | U116: 0
A117: Пром. | B117: Хлеб пшеничный | C117: 40 | D117: 2.3 | E117: 0.2 | F117: 14.8 | G117: 70.3 | H117: 0.03 | I117: 0.01 | J117: 0 | K117: 0 | L117: 0 | M117: 149.7 | N117: 27.9 | O117: 6 | P117: 4.2 | Q117: 19.5 | R117: 0.33 | S117: 0.96 | T117: 1.8 | U117: 4.35
B118: Итого за Завтрак | C118: =C114+C115+C116+C117 -> 400 | D118: =D114+D115+D116+D117 -> 11.4 | E118: 10.6 | F118: 50.2 | G118: 342.8 | H118: 0.13 | I118: 0.19 | J118: 62.24 | K118: 0.22 | L118: 0.53 | M118: 504.15 | N118: 229.13 | O118: 291.36 | P118: 41.63 | Q118: 241.42 | R118: 2.82 | S118: 38.12 | T118: 28.34 | U118: 20.46
B119: Обед
A120: 54-9з-2020 | B120: Салат из белокочанной капусты с морковью и яблоками с растительным маслом | C120: 60 | D120: 0.8 | E120: 6.1 | F120: 3.6 | G120: 72.5 | H120: 0.02 | I120: 0.02 | J120: 241.63 | K120: 0 | L120: 17.32 | M120: 87.51 | N120: 160.14 | O120: 23.5 | P120: 11.17 | Q120: 18.8 | R120: 0.56 | S120: 9.87 | T120: 0.15 | U120: 10.98
A121: 54-11с-2020 | B121: Суп крестьянский с крупой (крупа рисовая) | C121: 200 | D121: 5 | E121: 5.8 | F121: 11.3 | G121: 116.9 | H121: 0.04 | I121: 0.04 | J121: 103.29 | K121: 0 | L121: 6.42 | M121: 96.69 | N121: 195.41 | O121: 25.55 | P121: 15.32 | Q121: 40.39 | R121: 0.5 | S121: 15.37 | T121: 1.25 | U121: 20.68
A122: 54-11г-2020 | B122: Картофельное пюре | C122: 150 | D122: 3.1 | E122: 5.3 | F122: 19.8 | G122: 139.4 | H122: 0.12 | I122: 0.11 | J122: 23.8 | K122: 0.09 | L122: 10.2 | M122: 161.78 | N122: 624.83 | O122: 39.49 | P122: 28.23 | Q122: 84.47 | R122: 1.03 | S122: 28.46 | T122: 0.78 | U122: 42.79
A123: № рец. 290 | B123: Птица тушеная в соусе | C123: 50/50 | D123: 13.8 | E123: 14.8 | F123: 3.9 | G123: 211 | H123: 0.1 | I123: 0 | J123: 0 | K123: 0 | L123: 1.5 | M123: 0 | N123: 0 | O123: 26.4 | P123: 16.6 | Q123: 115.3 | R123: 0.9 | S123: 0 | T123: 0 | U123: 0
A124: 54-23гн-2020 | B124: Кофейный напиток с молоком | C124: 200 | D124: 3.9 | E124: 2.9 | F124: 11.2 | G124: 86 | H124: 0.03 | I124: 0.13 | J124: 13.29 | K124: 0 | L124: 0.52 | M124: 38.55 | N124: 183.98 | O124: 148.32 | P124: 30.67 | Q124: 106.79 | R124: 1.06 | S124: 9 | T124: 1.76 | U124: 20
A125: Пром. | B125: Хлеб пшеничный | C125: 30 | D125: 2.3 | E125: 0.2 | F125: 14.8 | G125: 70.3 | H125: 0.03 | I125: 0.01 | J125: 0 | K125: 0 | L125: 0 | M125: 149.7 | N125: 27.9 | O125: 6 | P125: 4.2 | Q125: 19.5 | R125: 0.33 | S125: 0.96 | T125: 1.8 | U125: 4.35
A126: Пром. | B126: Хлеб ржаной | C126: 20 | D126: 1.3 | E126: 0.2 | F126: 6.7 | G126: 34.2 | H126: 0.04 | I126: 0.02 | J126: 0 | K126: 0 | L126: 0 | M126: 122 | N126: 49 | O126: 7 | P126: 9.4 | Q126: 31.6 | R126: 0.78 | S126: 0 | T126: 6.18 | U126: 0
B127: Итого за Обед | C127: 760 | D127: =D120+D121+D122+D123+D124+D125+D126 -> 30.2 | E127: =E120+E121+E122+E123+E124+E125+E126 -> 35.3 | F127: 71.3 | G127: 730.3 | H127: 0.38 | I127: 0.33 | J127: 382.01 | K127: 0.09 | L127: 35.96 | M127: 656.23 | N127: 1241.26 | O127: 276.26 | P127: 115.59 | Q127: 416.85 | R127: 5.16 | S127: 63.66 | T127: 11.92 | U127: 98.8
B128: Полдник
A129: 54-10в-2020 | B129: Булочка ванильная | C129: 60 | D129: 4.7 | E129: 4 | F129: 30.5 | G129: 176.9 | H129: 0.06 | I129: 0.03 | J129: 19.12 | K129: 0.14 | L129: 0 | M129: 240.68 | N129: 50.54 | O129: 17.63 | P129: 6.52 | Q129: 40.93 | R129: 0.57 | S129: 33.36 | T129: 3.15 | U129: 11.03
A130: Пром. | B130: Сок яблочный | C130: 200 | D130: 1 | E130: 0.2 | F130: 20.2 | G130: 86.6 | H130: 0.02 | I130: 0.02 | J130: 0 | K130: 0 | L130: 4 | M130: 12 | N130: 240 | O130: 14 | P130: 8 | Q130: 14 | R130: 2.8 | S130: 0 | T130: 0 | U130: 0
B131: Итого за Полдник | C131: =C129+C130 -> 260 | D131: =D129+D130 -> 5.7 | E131: 4.2 | F131: 50.7 | G131: 263.5 | H131: 0.08 | I131: 0.05 | J131: 19.12 | K131: 0.14 | L131: 4 | M131: 252.68 | N131: 290.54 | O131: 31.63 | P131: 14.52 | Q131: 54.93 | R131: 3.37 | S131: 33.36 | T131: 3.15 | U131: 11.03
B132: Ужин
A133: 54-22м-2020 | B133: Рагу из курицы | C133: 160/60 | D133: 23.05 | E133: 7.74 | F133: 19.27 | G133: 239 | H133: 0.15 | I133: 0.12 | J133: 285.64 | K133: 0 | L133: 13 | M133: 310 | N133: 812 | O133: 34 | P133: 102 | Q133: 213 | R133: 2.3 | S133: 47.26 | T133: 18.7 | U133: 172
A134: 54-1гн-2020 | B134: Чай без сахара | C134: 200 | D134: 0.2 | E134: 0 | F134: 0.1 | G134: 1.4 | H134: 0 | I134: 0.01 | J134: 0.3 | K134: 0 | L134: 0.04 | M134: 0.62 | N134: 20.58 | O134: 65.96 | P134: 3.83 | Q134: 7.18 | R134: 0.71 | S134: 0 | T134: 0 | U134: 0
A135: Пром. | B135: Хлеб пшеничный | C135: 30 | D135: 2.3 | E135: 0.2 | F135: 14.8 | G135: 70.3 | H135: 0.03 | I135: 0.01 | J135: 0 | K135: 0 | L135: 0 | M135: 149.7 | N135: 27.9 | O135: 6 | P135: 4.2 | Q135: 19.5 | R135: 0.33 | S135: 0.96 | T135: 1.8 | U135: 4.35
B136: Итого за Ужин | C136: 450 | D136: =D133+D134+D138+D135 -> 31.35 | E136: 12.94 | F136: 42.17 | G136: 410.9 | H136: 0.24 | I136: 0.41 | J136: 312.34 | K136: 0 | L136: 14.04 | M136: 536.32 | N136: 1102.48 | O136: 316.96 | P136: 134.03 | Q136: 396.68 | R136: 3.54 | S136: 66.22 | T136: 24 | U136: 216.35
B137: Ужин 2
A138: Пром. | B138: Кефир 3.2% | C138: 200 | D138: 5.8 | E138: 5 | F138: 8 | G138: 100.2 | H138: 0.06 | I138: 0.27 | J138: 26.4 | K138: 0 | L138: 1 | M138: 76 | N138: 242 | O138: 211 | P138: 24 | Q138: 157 | R138: 0.2 | S138: 18 | T138: 3.5 | U138: 40
B139: Итого за ужин 2 | C139: =C138 -> 200 | D139: =D138 -> 5.8 | E139: 5 | F139: 8 | G139: 100.2 | H139: 0.06 | I139: 0.27 | J139: 26.4 | K139: 0 | L139: 1 | M139: 76 | N139: 242 | O139: 211 | P139: 24 | Q139: 157 | R139: 0.2 | S139: 18 | T139: 3.5 | U139: 40
B140: Итого за день | C140: =C118+C127+C131+C136+C139 -> 2070 | D140: =D118+D127+D131+D136+D139 -> 84.45 | E140: 68.04 | F140: 222.37 | G140: 1847.7 | H140: 0.89 | I140: 1.25 | J140: 802.11 | K140: 0.45 | L140: 55.53 | M140: 2025.38 | N140: 3105.41 | O140: 1127.21 | P140: 329.77 | Q140: 1266.88 | R140: 15.09 | S140: 219.36 | T140: 70.91 | U140: 386.64
A142: 5 день, 1 неделя
A143: № рецептуры | B143: Прием пищи, наименование блюда | C143: Масса | D143: Пищевые вещества | G143: Энергетическая ценность | H143: Витамины | M143: Минеральные вещества
D144: Белки | E144: Жиры | F144: Углеводы | H144: B1 | I144: B2 | J144: A | K144: D | L144: C | M144: Na | N144: K | O144: Ca | P144: Mg | Q144: P | R144: Fe | S144: I | T144: Se | U144: F
C145: г | D145: г | E145: г | F145: г | G145: ккал | H145: мг | I145: мг | J145: мкг рет.экв | K145: мкг | L145: мг | M145: мг | N145: мг | O145: мг | P145: мг | Q145: мг | R145: мг | S145: мкг | T145: мкг | U145: мкг
B146: Завтрак
A147: 53-19з-2020 | B147: Масло сливочное (порциями) | C147: 10 | D147: 0.08 | E147: 7.25 | F147: 0.13 | G147: 66.1 | H147: 0 | I147: 0.01 | J147: 27 | K147: 0.13 | L147: 0 | M147: 1.14 | N147: 2.49 | O147: 2.11 | P147: 0 | Q147: 2.61 | R147: 0.02 | S147: 0 | T147: 0.1 | U147: 0.3
A148: 54-16к-2020 | B148: Каша "Дружба" | C148: 160 | D148: 3.99 | E148: 4.72 | F148: 19.2 | G148: 135.1 | H148: 0.06 | I148: 0.1 | J148: 21.73 | K148: 0.05 | L148: 0 | M148: 268 | N148: 125 | O148: 110 | P148: 21 | Q148: 100 | R148: 0.4 | S148: 39.91 | T148: 3.2 | U148: 24.89
A149: 54-21гн-2020 | B149: Какао с молоком | C149: 200 | D149: 4.7 | E149: 3.5 | F149: 12.5 | G149: 100.4 | H149: 0.04 | I149: 0.16 | J149: 17.25 | K149: 0 | L149: 0.68 | M149: 49.95 | N149: 220.33 | O149: 167.68 | P149: 34.32 | Q149: 130.28 | R149: 1.09 | S149: 11.7 | T149: 2.29 | U149: 38.25
A150: Пром. | B150: Хлеб пшеничный | C150: 30 | D150: 2.3 | E150: 0.2 | F150: 14.8 | G150: 70.3 | H150: 0.03 | I150: 0.01 | J150: 0 | K150: 0 | L150: 0 | M150: 149.7 | N150: 27.9 | O150: 6 | P150: 4.2 | Q150: 19.5 | R150: 0.33 | S150: 0.96 | T150: 1.8 | U150: 4.35
B151: Итого за Завтрак | C151: =C147+C148+C149+C150 -> 400 | D151: =D147+D148+D149+D150 -> 11.07 | E151: 15.67 | F151: 46.63 | G151: 371.9 | H151: 0.13 | I151: 0.28 | J151: 65.98 | K151: 0.18 | L151: 0.68 | M151: 468.79 | N151: 375.72 | O151: 285.79 | P151: 59.52 | Q151: 252.39 | R151: 1.84 | S151: 52.57 | T151: 7.39 | U151: 67.79
B152: Обед
A153: 54-11з-2020 | B153: Салат из моркови с яблоками с растительным маслом | C153: 60 | D153: 0.5 | E153: 6.1 | F153: 4.3 | G153: 74.3 | H153: 0.03 | I153: 0.03 | J153: 732.9 | K153: 0 | L153: 3.63 | M153: 89.79 | N153: 123.26 | O153: 13.5 | P153: 15.57 | Q153: 22.38 | R153: 0.66 | S153: 10.19 | T153: 0.09 | U153: 21.57
A154: 54-8с-2020 | B154: Суп гороховый | C154: 200 | D154: 6.7 | E154: 4.6 | F154: 16.3 | G154: 133.1 | H154: 0.14 | I154: 0.05 | J154: 97.19 | K154: 0 | L154: 4.77 | M154: 95.82 | N154: 382.43 | O154: 26.94 | P154: 29 | Q154: 80.47 | R154: 1.48 | S154: 15.96 | T154: 2.01 | U154: 28.88
A155: 54-11м-2020 | B155: плов из говядины | C155: 160/40 | D155: 15.3 | E155: 14.7 | F155: 38.6 | G155: 348.2 | H155: 0.07 | I155: 0.12 | J155: 261.6 | K155: 0.1 | L155: 0.72 | M155: 276.68 | N155: 267.36 | O155: 116.58 | P155: 43.81 | Q155: 193.2 | R155: 2.21 | S155: 38.67 | T155: 7.35 | U155: 81.73
A156: 54-2хн-2020 | B156: компот из кураги | C156: 200 | D156: 1 | E156: 0.1 | F156: 15.6 | G156: 66.9 | H156: 0.01 | I156: 0.03 | J156: 69.96 | K156: 0 | L156: 0.32 | M156: 2.64 | N156: 285.2 | O156: 90.5 | P156: 18.27 | Q156: 25.4 | R156: 0.58 | S156: 0 | T156: 0 | U156: 0
A157: Пром. | B157: Хлеб пшеничный | C157: 30 | D157: 2.3 | E157: 0.2 | F157: 14.8 | G157: 70.3 | H157: 0.03 | I157: 0.01 | J157: 0 | K157: 0 | L157: 0 | M157: 149.7 | N157: 27.9 | O157: 6 | P157: 4.2 | Q157: 19.5 | R157: 0.33 | S157: 0.96 | T157: 1.8 | U157: 4.35
B158: Итого за Обед | C158: 690 | D158: =D153+D154+D155+D156+D157 -> 25.8 | E158: =E153+E154+E155+E156+E157 -> 25.7 | F158: 89.6 | G158: 692.8 | H158: 0.28 | I158: 0.24 | J158: 1161.65 | K158: 0.1 | L158: 9.44 | M158: 614.63 | N158: 1086.15 | O158: 253.52 | P158: 110.85 | Q158: 340.95 | R158: 5.26 | S158: 65.78 | T158: 11.25 | U158: 136.53
B159: Полдник
A160: Пром. | B160: Сок персиковый | C160: 200 | D160: 0.6 | E160: 0 | F160: 33 | G160: 134.4 | H160: 0.03 | I160: 0.06 | J160: 60 | K160: 0 | L160: 5 | M160: 9 | N160: 252 | O160: 9 | P160: 21 | Q160: 26 | R160: 0.3 | S160: 0 | T160: 0 | U160: 0
A161: Пром. | B161: Пряник | C161: 30 | D161: 1.8 | E161: 1.4 | F161: 22.5 | G161: 109.8 | H161: 0.02 | I161: 0.01 | J161: 0 | K161: 0 | L161: 0 | M161: 0.6 | N161: 21.3 | O161: 3.3 | P161: 2.7 | Q161: 15 | R161: 0.24 | S161: 0 | T161: 0 | U161: 0
B162: Итого за Полдник | C162: =C160+C161 -> 230 | D162: =D160+D161 -> 2.4 | E162: 1.4 | F162: 55.5 | G162: 244.2 | H162: 0.05 | I162: 0.07 | J162: 60 | K162: 0 | L162: 5 | M162: 9.6 | N162: 273.3 | O162: 12.3 | P162: 23.7 | Q162: 41 | R162: 0.54 | S162: 0 | T162: 0 | U162: 0
B163: Ужин
A164: 54-4г-2020 | B164: Каша гречневая рассыпчатая | C164: 150 | D164: 8.2 | E164: 6.3 | F164: 35.9 | G164: 233.7 | H164: 0.21 | I164: 0.12 | J164: 19.19 | K164: 0.09 | L164: 0 | M164: 149.45 | N164: 219.36 | O164: 46.62 | P164: 120.16 | Q164: 180.99 | R164: 4.05 | S164: 22.28 | T164: 3.52 | U164: 16.06
A165: 54-2м-2020 | B165: Гуляш из говядины | C165: 60/40 | D165: 13.76 | E165: 13.91 | F165: 3.9 | G165: 195.8 | H165: 0.04 | I165: 0.12 | J165: 25.46 | K165: 0.07 | L165: 1 | M165: 122 | N165: 322 | O165: 55 | P165: 23 | Q165: 166 | R165: 2.5 | S165: 17.06 | T165: 0.4 | U165: 62.71
A166: 54-3гн-2020 | B166: Чай с лимоном и сахаром | C166: 207 | D166: 0.2 | E166: 0.1 | F166: 6.6 | G166: 27.9 | H166: 0 | I166: 0.01 | J166: 0.38 | K166: 0 | L166: 1.16 | M166: 1.26 | N166: 30.23 | O166: 67 | P166: 4.56 | Q166: 8.52 | R166: 0.77 | S166: 0.01 | T166: 0.02 | U166: 0.7
A167: Пром. | B167: Хлеб пшеничный | C167: 30 | D167: 2.3 | E167: 0.2 | F167: 14.8 | G167: 70.3 | H167: 0.03 | I167: 0.01 | J167: 0 | K167: 0 | L167: 0 | M167: 149.7 | N167: 27.9 | O167: 6 | P167: 4.2 | Q167: 19.5 | R167: 0.33 | S167: 0.96 | T167: 1.8 | U167: 4.35
A168: Пром. | B168: Хлеб ржаной | C168: 20 | D168: 1.3 | E168: 0.2 | F168: 6.7 | G168: 34.2 | H168: 0.04 | I168: 0.02 | J168: 0 | K168: 0 | L168: 0 | M168: 122 | N168: 49 | O168: 7 | P168: 9.4 | Q168: 31.6 | R168: 0.78 | S168: 0 | T168: 6.18 | U168: 0
B169: Итого за Ужин | C169: 507 | D169: =D164+D165+D166+D167+D168 -> 25.76 | E169: =E164+E165+E166+E167+E168 -> 20.71 | F169: 67.9 | G169: 561.9 | H169: 0.32 | I169: 0.28 | J169: 45.03 | K169: 0.16 | L169: 2.16 | M169: 544.41 | N169: 648.49 | O169: 181.62 | P169: 161.32 | Q169: 406.61 | R169: 8.43 | S169: 40.31 | T169: 11.92 | U169: 83.82
B170: Ужин 2
A171: Пром. | B171: Ряженка 2.5% | C171: 200 | D171: 5.8 | E171: 5 | F171: 8.4 | G171: 101.8 | H171: 0.03 | I171: 0.21 | J171: 26.4 | K171: 0 | L171: 0 | M171: 76 | N171: 242 | O171: 218 | P171: 24 | Q171: 160 | R171: 0.2 | S171: 18 | T171: 1.8 | U171: 40
B172: Итого за ужин 2 | C172: =C171 -> 200 | D172: =D171 -> 5.8 | E172: 5 | F172: 8.4 | G172: 101.8 | H172: 0.03 | I172: 0.21 | J172: 26.4 | K172: 0 | L172: 0 | M172: 76 | N172: 242 | O172: 218 | P172: 24 | Q172: 160 | R172: 0.2 | S172: 18 | T172: 1.8 | U172: 40
B173: Итого за день | C173: =C151+C158+C162+C169+C172 -> 2027 | D173: =D151+D158+D162+D169+D172 -> 70.83 | E173: 68.48 | F173: 268.03 | G173: 1972.6 | H173: 0.81 | I173: 1.08 | J173: 1359.06 | K173: 0.44 | L173: 17.28 | M173: 1713.43 | N173: 2625.66 | O173: 951.23 | P173: 379.39 | Q173: 1200.95 | R173: 16.27 | S173: 176.66 | T173: 32.36 | U173: 328.14
A175: 7 день, 1 неделя
A176: № рецептуры | B176: Прием пищи, наименование блюда | C176: Масса | D176: Пищевые вещества | G176: Энергетическая ценность | H176: Витамины | M176: Минеральные вещества
D177: Белки | E177: Жиры | F177: Углеводы | H177: B1 | I177: B2 | J177: A | K177: D | L177: C | M177: Na | N177: K | O177: Ca | P177: Mg | Q177: P | R177: Fe | S177: I | T177: Se | U177: F
C178: г | D178: г | E178: г | F178: г | G178: ккал | H178: мг | I178: мг | J178: мкг рет.экв | K178: мкг | L178: мг | M178: мг | N178: мг | O178: мг | P178: мг | Q178: мг | R178: мг | S178: мкг | T178: мкг | U178: мкг
B179: Завтрак
A180: 53-19з-2020 | B180: Масло сливочное (порциями) | C180: 10 | D180: 0.08 | E180: 7.25 | F180: 0.13 | G180: 66.1 | H180: 0 | I180: 0.01 | J180: 27 | K180: 0.13 | L180: 0 | M180: 1.14 | N180: 2.49 | O180: 2.11 | P180: 0 | Q180: 2.61 | R180: 0.02 | S180: 0 | T180: 0.1 | U180: 0.3
A181: 54-22к-2020 | B181: Каша жидкая молочная овсяная | C181: 150 | D181: 5.1 | E181: 5.6 | F181: 18.5 | G181: 144.5 | H181: 0.11 | I181: 0.13 | J181: 21.81 | K181: 0.05 | L181: 0.46 | M181: 260.87 | N181: 177.7 | O181: 123.12 | P181: 34.24 | Q181: 140.9 | R181: 0.89 | S181: 39 | T181: 7.47 | U181: 37.21
A182: 54-4гн-2020 | B182: Чай с молоком и сахаром | C182: 200 | D182: 1.6 | E182: 1.1 | F182: 8.6 | G182: 50.9 | H182: 0.01 | I182: 0.07 | J182: 6.9 | K182: 0 | L182: 0.3 | M182: 19.68 | N182: 81.35 | O182: 103.48 | P182: 9.92 | Q182: 46.33 | R182: 0.78 | S182: 4.5 | T182: 0.88 | U182: 10
A183: Пром. | B183: Хлеб пшеничный | C183: 30 | D183: 2.3 | E183: 0.2 | F183: 14.8 | G183: 70.3 | H183: 0.03 | I183: 0.01 | J183: 0 | K183: 0 | L183: 0 | M183: 149.7 | N183: 27.9 | O183: 6 | P183: 4.2 | Q183: 19.5 | R183: 0.33 | S183: 0.96 | T183: 1.8 | U183: 4.35
B184: Итого за Завтрак | C184: =C180+C181+C182+C183 -> 390 | D184: =D180+D181+D182+D183 -> 9.08 | E184: 14.15 | F184: 42.03 | G184: 331.8 | H184: 0.15 | I184: 0.22 | J184: 55.71 | K184: 0.18 | L184: 0.76 | M184: 431.39 | N184: 289.44 | O184: 234.71 | P184: 48.36 | Q184: 209.34 | R184: 2.02 | S184: 44.46 | T184: 10.25 | U184: 51.86
B185: Обед
A186: 54-11з-2020 | B186: Салат из моркови с яблоками с растительным маслом | C186: 60 | D186: 0.5 | E186: 6.1 | F186: 4.3 | G186: 74.3 | H186: 0.03 | I186: 0.03 | J186: 732.9 | K186: 0 | L186: 3.63 | M186: 89.79 | N186: 123.26 | O186: 13.5 | P186: 15.57 | Q186: 22.38 | R186: 0.66 | S186: 10.19 | T186: 0.09 | U186: 21.57
A187: 62 | B187: Борщ | C187: 200 | D187: 2.6 | E187: 4.5 | F187: 13.1 | G187: 107 | H187: 0.1 | I187: 0 | J187: 0.2 | K187: 0 | L187: 10.7 | M187: 0 | N187: 0 | O187: 43.5 | P187: 26.9 | Q187: 57.4 | R187: 1.4 | S187: 0 | T187: 0 | U187: 0
A188: 54-4г-2020 | B188: Каша гречневая рассыпчатая | C188: 150 | D188: 8.2 | E188: 6.3 | F188: 35.9 | G188: 233.7 | H188: 0.21 | I188: 0.12 | J188: 19.19 | K188: 0.09 | L188: 0 | M188: 149.45 | N188: 219.36 | O188: 46.62 | P188: 120.16 | Q188: 180.99 | R188: 4.05 | S188: 22.28 | T188: 3.52 | U188: 16.06
A189: ном.рец №608 | B189: Котлета мясная Любительская, полуфабрикат в соусе | C189: 65/35 | D189: 10.04 | E189: 12.79 | F189: 8.12 | G189: 187.9 | H189: 0 | I189: 0 | J189: 38.45 | K189: 0.01 | L189: 1.15 | M189: 3 | N189: 43 | O189: 45.75 | P189: 35.13 | Q189: 173.38 | R189: 1.6 | S189: 0 | T189: 0 | U189: 0
A190: 54-2гн-2020 | B190: Чай с сахаром | C190: 200 | D190: 0.2 | E190: 0 | F190: 6.4 | G190: 26.8 | H190: 0 | I190: 0.01 | J190: 0.3 | K190: 0 | L190: 0.04 | M190: 0.68 | N190: 20.76 | O190: 66.08 | P190: 3.83 | Q190: 7.18 | R190: 0.73 | S190: 0 | T190: 0 | U190: 0
A191: Пром. | B191: Хлеб пшеничный | C191: 30 | D191: 2.3 | E191: 0.2 | F191: 14.8 | G191: 70.3 | H191: 0.03 | I191: 0.01 | J191: 0 | K191: 0 | L191: 0 | M191: 149.7 | N191: 27.9 | O191: 6 | P191: 4.2 | Q191: 19.5 | R191: 0.33 | S191: 0.96 | T191: 1.8 | U191: 4.35
B192: Итого за Обед | C192: 740 | D192: =D186+D187+D188+D189+D190+D191 -> 23.84 | E192: =E186+E187+E188+E189+E190+E191 -> 29.89 | F192: 82.62 | G192: 700 | H192: 0.37 | I192: 0.17 | J192: 791.04 | K192: 0.1 | L192: 15.52 | M192: 392.62 | N192: 434.28 | O192: 221.45 | P192: 205.79 | Q192: 460.83 | R192: 8.77 | S192: 33.43 | T192: 5.41 | U192: 41.98
B193: Полдник
A194: Пром. | B194: Сок яблочный | C194: 200 | D194: 1 | E194: 0.2 | F194: 20.2 | G194: 86.6 | H194: 0.02 | I194: 0.02 | J194: 0 | K194: 0 | L194: 4 | M194: 12 | N194: 240 | O194: 14 | P194: 8 | Q194: 14 | R194: 2.8 | S194: 0 | T194: 0 | U194: 0
A195: Пром. | B195: Сушка простая | C195: 30 | D195: 3.27 | E195: 0.39 | F195: 20.64 | G195: 99.1 | H195: 0.05 | I195: 0.02 | J195: 0 | K195: 0 | L195: 0 | M195: 137.94 | N195: 46.06 | O195: 7.92 | P195: 12.01 | Q195: 31.58 | R195: 0.76 | S195: 0 | T195: 0 | U195: 0
B196: Итого за Полдник | C196: =C194+C195 -> 230 | D196: =D194+D195 -> 4.27 | E196: 0.59 | F196: 40.84 | G196: 185.7 | H196: 0.07 | I196: 0.04 | J196: 0 | K196: 0 | L196: 4 | M196: 149.94 | N196: 286.06 | O196: 21.92 | P196: 20.01 | Q196: 45.58 | R196: 3.56 | S196: 0 | T196: 0 | U196: 0
B197: Ужин
A198: 54-6г-2020 | B198: Рис отварной | C198: 150 | D198: 5.3 | E198: 4.9 | F198: 32.8 | G198: 196.8 | H198: 0.06 | I198: 0.02 | J198: 18.36 | K198: 0.09 | L198: 0 | M198: 149.04 | N198: 53.8 | O198: 105.83 | P198: 7.19 | Q198: 40.7 | R198: 0.73 | S198: 20.77 | T198: 0.06 | U198: 11.92
A199: 54-25м-2020 | B199: Курица тушеная с морковью | C199: 40/60 | D199: 14.12 | E199: 5.78 | F199: 4.46 | G199: 126.4 | H199: 0.04 | I199: 0.05 | J199: 286.31 | K199: 0.02 | L199: 0 | M199: 249 | N199: 209 | O199: 33 | P199: 55 | Q199: 112 | R199: 0.9 | S199: 35.07 | T199: 12 | U199: 94.93
A200: 54-1хн-2020 | B200: Компот из смеси сухофруктов | C200: 200 | D200: 0.5 | E200: 0 | F200: 19.8 | G200: 81 | H200: 0 | I200: 0 | J200: 15 | K200: 0 | L200: 0.02 | M200: 0.05 | N200: 0.17 | O200: 108.08 | P200: 2.11 | Q200: 4.31 | R200: 0.08 | S200: 0 | T200: 0 | U200: 0
A201: Пром. | B201: Хлеб пшеничный | C201: 30 | D201: 2.3 | E201: 0.2 | F201: 14.8 | G201: 70.3 | H201: 0.03 | I201: 0.01 | J201: 0 | K201: 0 | L201: 0 | M201: 149.7 | N201: 27.9 | O201: 6 | P201: 4.2 | Q201: 19.5 | R201: 0.33 | S201: 0.96 | T201: 1.8 | U201: 4.35
A202: Пром. | B202: Хлеб ржаной | C202: 20 | D202: 1.3 | E202: 0.2 | F202: 6.7 | G202: 34.2 | H202: 0.04 | I202: 0.02 | J202: 0 | K202: 0 | L202: 0 | M202: 122 | N202: 49 | O202: 7 | P202: 9.4 | Q202: 31.6 | R202: 0.78 | S202: 0 | T202: 6.18 | U202: 0
B203: Итого за Ужин | C203: 500 | D203: =D198+D199+D200+D205+D201 -> 28.02 | E203: =E198+E199+E200+E205+E201 -> 15.88 | F203: 80.26 | G203: 576.3 | H203: 0.16 | I203: 0.29 | J203: 346.07 | K203: 0.11 | L203: 0.02 | M203: 623.79 | N203: 532.87 | O203: 470.91 | P203: 92.5 | Q203: 336.51 | R203: 2.24 | S203: 74.8 | T203: 15.66 | U203: 151.2
B204: Ужин 2
A205: Пром. | B205: Ряженка 2.5% | C205: 200 | D205: 5.8 | E205: 5 | F205: 8.4 | G205: 101.8 | H205: 0.03 | I205: 0.21 | J205: 26.4 | K205: 0 | L205: 0 | M205: 76 | N205: 242 | O205: 218 | P205: 24 | Q205: 160 | R205: 0.2 | S205: 18 | T205: 1.8 | U205: 40
B206: Итого за ужин 2 | C206: =C205 -> 200 | D206: =D205 -> 5.8 | E206: 5 | F206: 8.4 | G206: 101.8 | H206: 0.03 | I206: 0.21 | J206: 26.4 | K206: 0 | L206: 0 | M206: 76 | N206: 242 | O206: 218 | P206: 24 | Q206: 160 | R206: 0.2 | S206: 18 | T206: 1.8 | U206: 40
B207: Итого за день | C207: =C184+C192+C196+C203+C206 -> 2060 | D207: =D184+D192+D196+D203+D206 -> 71.01 | E207: 65.51 | F207: 254.15 | G207: 1895.6 | H207: 0.78 | I207: 0.93 | J207: 1219.22 | K207: 0.39 | L207: 20.3 | M207: 1673.74 | N207: 1784.65 | O207: 1166.99 | P207: 390.66 | Q207: 1212.26 | R207: 16.79 | S207: 170.69 | T207: 33.12 | U207: 285.04
... 143 more rows
